bitfinex/quotes_SOLUSD_20241029
["timestamp","ask_amount","ask_price","bid_price","bid_amount"]
[1730168450017,0.6139017,180.7,180.62,3.34413197]
[1730168450217,0.6139017,180.7,180.6,3.34413197]
[1730168450420,47.35709753,180.61,180.6,3.34413197]
[1730168450613,0.6139017,180.7,180.61,0.1]
[1730168450814,0.6139017,180.7,180.61,23.4406717]
[1730168451027,47.35709753,180.66,180.61,26.23563418]
[1730168451221,47.35709753,180.66,180.61,23.4406717]
[1730168451423,47.35709753,180.67,180.61,23.4406717]
[1730168451723,47.35709753,180.66,180.62,3.3406717]
[1730168453125,47.35709753,180.65,180.62,3.3406717]
[1730168453320,47.35709753,180.63,180.62,3.3406717]
[1730168453529,47.35709753,180.63,180.6,3.3406717]
[1730168453732,47.35709753,180.61,180.59,3.3406717]
[1730168454131,47.35709753,180.6,180.59,3.3406717]
[1730168454347,47.35709753,180.6,180.58,3.3406717]
[1730168454635,29.1679401,180.67,180.59,7.29395581]
[1730168454839,29.1679401,180.68,180.61,0.1]
[1730168455042,0.6139017,180.7,180.64,0.1]
[1730168455226,29.7818418,180.7,180.65,7.19395581]
[1730168455536,29.1679401,180.69,180.65,7.19395581]
[1730168455832,29.7818418,180.7,180.64,3.54896264]
[1730168456032,29.7818418,180.7,180.64,3.44896264]
[1730168456341,0.6139017,180.7,180.67,0.1]
[1730168456634,0.6139017,180.7,180.68,20.0]
[1730168456836,0.6139017,180.7,180.69,0.1]
[1730168457024,29.7818418,180.7,180.68,6.14392512]
[1730168457220,0.6139017,180.7,180.68,0.1]
[1730168457536,0.6139017,180.7,180.69,30.64291845]
[1730168457719,0.6139017,180.7,180.69,124.51980245]
[1730168457914,29.1679401,180.75,180.71,0.2]
[1730168458222,29.1679401,180.79,180.74,0.1]
[1730168458422,29.1679401,180.76,180.74,2.89496248]
[1730168458725,29.1679401,180.75,180.72,26.14038248]
[1730168458910,29.1679401,180.81,180.72,22.79496248]
[1730168459113,29.1679401,180.73,180.72,2.79496248]
[1730168459331,29.1679401,180.73,180.7,3.34542]
[1730168459511,29.1679401,180.71,180.69,23.34542]
[1730168459717,29.1679401,180.7,180.69,20.0]
[1730168459930,29.1679401,180.7,180.69,3.31892066]
[1730168460230,29.1679401,180.7,180.68,3.41892066]
[1730168460435,29.1679401,180.69,180.67,3.31892066]
[1730168460633,29.1679401,180.68,180.67,3.31892066]
[1730168460935,29.1679401,180.68,180.66,3.31892066]
[1730168461156,29.1679401,180.67,180.66,6.11388314]
[1730168461315,29.1679401,180.67,180.66,3.31892066]
[1730168461827,29.1679401,180.67,180.63,3.31892066]
[1730168462035,29.1679401,180.65,180.63,3.31892066]
[1730168462344,29.1679401,180.65,180.64,3.31892066]
[1730168462530,29.1679401,180.65,180.63,3.31892066]
[1730168462926,6.6347,180.77,180.66,0.1]
[1730168463128,29.1679401,180.81,180.69,20.1]
[1730168463430,29.1679401,180.72,180.69,27.29395581]
[1730168463642,29.1679401,180.74,180.69,30.17198441]
[1730168463822,29.1679401,180.81,180.72,70.1]
[1730168463823,29.1679401,180.77,180.72,70.1]
[1730168464020,29.1679401,180.75,180.72,70.1]
[1730168464341,29.1679401,180.76,180.73,2.77725486]
[1730168464528,29.1679401,180.74,180.73,2.77725486]
[1730168464727,29.1679401,180.74,180.71,20.0]
[1730168464728,29.1679401,180.74,180.71,2.77725486]
[1730168465030,58.3358802,180.72,180.67,2.77725486]
[1730168465235,29.1679401,180.68,180.65,11.18547959]
[1730168465546,29.1679401,180.66,180.64,3.32314648]
[1730168465734,29.1679401,180.65,180.64,3.32314648]
[1730168465933,29.1679401,180.65,180.63,3.32314648]
[1730168466332,29.1679401,180.67,180.64,3.32314648]
[1730168466528,29.1679401,180.65,180.64,3.32314648]
[1730168466742,29.1679401,180.65,180.64,73.32314648]
[1730168466936,29.1679401,180.65,180.64,2.77725486]
[1730168467144,29.1679401,180.65,180.63,7.19395581]
[1730168467350,29.1679401,180.72,180.64,3.32197093]
[1730168467650,29.1679401,180.65,180.63,3.32197093]
[1730168468026,29.1679401,180.72,180.63,3.32197093]
[1730168468225,29.1679401,180.7,180.64,3.32197093]
[1730168468431,29.1679401,180.68,180.64,6.09922579]
[1730168468639,29.1679401,180.65,180.64,6.09922579]
[1730168468843,29.1679401,180.68,180.64,3.32197093]
[1730168469025,29.1679401,180.69,180.64,3.32197093]
[1730168469236,29.1679401,180.65,180.64,3.32197093]
[1730168469436,29.1679401,180.71,180.65,70.2]
[1730168469634,29.1679401,180.68,180.66,6.10143597]
[1730168469846,29.1679401,180.71,180.66,0.1]
[1730168470054,29.1679401,180.67,180.65,6.10143597]
[1730168470352,29.1679401,180.69,180.65,3.32418111]
[1730168470551,29.1679401,180.71,180.66,3.32418111]
[1730168470757,29.1679401,180.69,180.66,3.32418111]
[1730168470960,29.1679401,180.67,180.65,6.10143597]
[1730168471252,29.1679401,180.67,180.65,3.32418111]
[1730168471456,29.1679401,180.66,180.65,3.32418111]
[1730168471842,29.1679401,180.66,180.56,75.08507825]
[1730168471843,29.1679401,180.66,180.64,3.32418111]
[1730168472151,29.1679401,180.71,180.65,3.32418111]
[1730168472351,29.1679401,180.7,180.66,3.32418111]
[1730168472657,29.1679401,180.68,180.67,3.32418111]
[1730168472830,29.1679401,180.71,180.66,3.32418111]
[1730168473030,29.1679401,180.74,180.69,3.32418111]
[1730168473333,29.1679401,180.73,180.69,3.32418111]
[1730168473640,29.1679401,180.75,180.69,3.32418111]
[1730168474051,29.1679401,180.77,180.7,23.32418111]
[1730168474353,29.1679401,180.77,180.71,3.33423395]
[1730168474551,29.1679401,180.76,180.71,3.33423395]
[1730168474848,29.1679401,180.76,180.71,23.33423395]
[1730168475043,29.1679401,180.74,180.71,3.33423395]
[1730168475227,29.1679401,180.76,180.71,3.33423395]
[1730168475558,29.1679401,180.77,180.72,3.33423395]
[1730168475736,29.1679401,180.79,180.72,3.33423395]
[1730168476050,1.6139017,180.88,180.79,70.0]
[1730168476260,29.1679401,180.85,180.8,2.78640991]
[1730168476850,29.1679401,180.86,180.8,2.78640991]
[1730168477157,1.6139017,180.88,180.82,20.0]
[1730168477337,1.6139017,180.88,180.82,22.88640991]
[1730168477537,1.6139017,180.88,180.83,3.43423395]
[1730168477733,30.7818418,180.88,180.83,3.33423395]
[1730168477957,29.1679401,180.87,180.85,3.33423395]
[1730168478249,29.1679401,180.86,180.84,3.33423395]
[1730168478654,30.7818418,180.88,180.84,3.33423395]
[1730168478850,1.6139017,180.88,180.86,3.33423395]
[1730168479053,30.7818418,180.88,180.86,3.33423395]
[1730168479257,29.1679401,180.87,180.86,3.33423395]
[1730168479466,30.7818418,180.88,180.86,3.33423395]
[1730168479759,1.6139017,180.88,180.84,2.78640991]
[1730168479953,29.1679401,180.91,180.85,2.78640991]
[1730168480161,29.1679401,180.92,180.89,3.29279452]
[1730168480341,29.1679401,180.93,180.89,3.29279452]
[1730168480546,29.1679401,180.97,180.9,3.39279452]
[1730168480744,29.1679401,180.95,180.92,3.29279452]
[1730168481060,29.1679401,180.93,180.91,3.29279452]
[1730168481242,29.1679401,180.93,180.9,3.29279452]
[1730168481554,29.1679401,180.94,180.91,3.29279452]
[1730168481765,29.1679401,180.99,180.92,3.28266385]
[1730168481766,29.1679401,180.95,180.92,3.28266385]
[1730168481932,29.1679401,180.93,180.91,3.28266385]
[1730168482136,6.5611,181.01,180.91,3.28266385]
[1730168482438,16.4474017,181.06,180.93,3.28266385]
[1730168482439,29.1679401,180.97,180.93,3.28266385]
[1730168482636,6.7040017,181.06,180.94,3.28266385]
[1730168482852,29.1679401,180.98,180.95,73.28266385]
[1730168483157,29.1679401,181.01,180.96,32.45060395]
[1730168483334,6.7040017,181.06,180.97,3.28266385]
[1730168483539,29.1679401,181.0,180.96,6.02536486]
[1730168483735,0.6139017,181.06,180.97,3.28266385]
[1730168483937,29.1679401,180.98,180.96,3.28266385]
[1730168484149,29.1679401,180.99,180.96,3.28266385]
[1730168484359,29.1679401,181.03,180.98,3.28266385]
[1730168484571,0.6139017,181.06,180.99,99.1679401]
[1730168484739,0.6139017,181.06,181.05,3.28266385]
[1730168485064,0.6139017,181.06,181.05,52.45060395]
[1730168485247,0.6139017,181.06,181.05,155.94455032]
[1730168485451,0.6139017,181.06,181.05,138.01734423]
[1730168485644,0.6139017,181.06,181.05,132.13244361]
[1730168485850,0.6139017,181.06,181.05,129.56261396]
[1730168486151,0.6139017,181.06,181.05,105.78572996]
[1730168486355,29.1679401,181.13,181.1,70.0]
[1730168486566,47.10080521,181.15,181.11,2.72236969]
[1730168486868,47.10080521,181.12,181.11,2.72236969]
[1730168487068,0.6139017,181.25,181.11,70.0]
[1730168487237,47.10080521,181.19,181.15,70.1]
[1730168487436,47.10080521,181.2,181.15,70.1]
[1730168487759,47.10080521,181.22,181.17,70.0]
[1730168487964,47.10080521,181.18,181.15,70.0]
[1730168488142,47.10080521,181.16,181.13,70.0]
[1730168488341,47.10080521,181.16,181.12,12.2795477]
[1730168488342,47.10080521,181.18,181.15,70.0]
[1730168488681,47.10080521,181.18,181.16,2.70876465]
[1730168488837,47.10080521,181.21,181.19,70.0]
[1730168489037,0.6139017,181.25,181.19,70.0]
[1730168489038,47.10080521,181.23,181.19,70.0]
[1730168489261,47.10080521,181.23,181.21,70.0]
[1730168489443,0.6139017,181.25,181.18,70.0]
[1730168489444,47.10080521,181.22,181.18,70.0]
[1730168489760,47.10080521,181.2,181.18,70.0]
[1730168490142,47.10080521,181.21,181.18,70.0]
[1730168490343,47.10080521,181.19,181.16,71.10328056]
[1730168490557,47.10080521,181.17,181.16,70.0]
[1730168490943,47.10080521,181.17,181.13,70.0]
[1730168491259,47.10080521,181.14,181.1,70.0]
[1730168491433,47.10080521,181.12,181.11,2.69401585]
[1730168491641,47.10080521,181.13,181.1,70.0]
[1730168491835,47.10080521,181.14,181.1,70.0]
[1730168492044,47.10080521,181.13,181.1,70.0]
[1730168492240,47.10080521,181.15,181.12,70.0]
[1730168492457,47.10080521,181.13,181.1,70.0]
[1730168492853,47.10080521,181.17,181.12,70.0]
[1730168493171,47.10080521,181.19,181.16,70.0]
[1730168493369,47.10080521,181.2,181.18,70.0]
[1730168493771,47.10080521,181.19,181.16,70.0]
[1730168494065,0.6139017,181.25,181.14,5.66693659]
[1730168494066,47.10080521,181.17,181.14,75.66693659]
[1730168494257,47.10080521,181.15,181.08,70.0]
[1730168494440,47.10080521,181.14,181.12,70.0]
[1730168494838,47.10080521,181.13,181.12,70.0]
[1730168495056,47.10080521,181.14,181.12,70.0]
[1730168495250,47.10080521,181.13,181.12,70.0]
[1730168495466,47.10080521,181.13,181.1,70.0]
[1730168495767,47.10080521,181.13,181.12,70.0]
[1730168496074,47.10080521,181.13,181.12,7.19395581]
[1730168496252,47.10080521,181.14,181.12,7.19395581]
[1730168496571,47.10080521,181.16,181.15,70.0]
[1730168496870,0.6139017,181.25,181.21,70.0]
[1730168497065,0.6139017,181.25,181.2,6.462]
[1730168497066,55.62132691,181.24,181.23,70.0]
[1730168497369,55.62132691,181.24,181.21,70.0]
[1730168497569,55.62132691,181.22,181.21,70.0]
[1730168497784,55.62132691,181.23,181.21,70.0]
[1730168497948,0.6139017,181.25,181.2,6.462]
[1730168497949,55.62132691,181.22,181.2,6.462]
[1730168498149,55.62132691,181.21,181.17,34.34590666]
[1730168498363,0.6139017,181.25,181.2,70.0]
[1730168499375,0.6139017,181.25,181.23,70.0]
[1730168499671,55.62132691,181.24,181.21,70.0]
[1730168499853,55.62132691,181.22,181.19,70.0]
[1730168500049,55.62132691,181.2,181.19,70.0]
[1730168500860,55.62132691,181.21,181.19,70.0]
[1730168501272,55.62132691,181.2,181.19,70.0]
[1730168502873,55.62132691,181.2,181.18,70.0]
[1730168503075,55.62132691,181.19,181.18,70.0]
[1730168503270,55.62132691,181.19,181.15,70.0]
[1730168503467,55.62132691,181.16,181.15,70.0]
[1730168505163,55.62132691,181.16,181.13,75.66693659]
[1730168505366,55.62132691,181.14,181.13,75.66693659]
[1730168505680,55.62132691,181.14,181.11,70.0]
[1730168505886,55.62132691,181.12,181.11,70.0]
[1730168507898,55.62132691,181.12,181.08,70.0]
[1730168508068,55.62132691,181.09,181.08,70.0]
[1730168508263,55.62132691,181.09,181.06,70.0]
[1730168508487,55.62132691,181.17,181.06,70.0]
[1730168508488,55.62132691,181.07,181.06,70.0]
[1730168508698,55.72132691,181.17,181.03,21.9441]
[1730168508699,55.62132691,181.11,181.08,70.0]
[1730168508865,55.62132691,181.1,181.08,70.0]
[1730168509375,55.62132691,181.09,181.08,70.0]
[1730168509681,55.62132691,181.11,181.1,70.0]
[1730168510458,34.26472265,181.11,181.1,70.0]
[1730168510659,34.26472265,181.11,181.05,0.1]
[1730168510872,34.26472265,181.08,181.06,70.0]
[1730168511071,0.6139017,181.25,181.12,70.0]
[1730168511271,34.26472265,181.16,181.14,70.0]
[1730168511468,34.26472265,181.15,181.14,70.0]
[1730168512705,34.26472265,181.16,181.14,70.0]
[1730168512985,0.6139017,181.25,181.17,70.0]
[1730168513172,34.26472265,181.18,181.17,70.0]
[1730168513572,34.26472265,181.18,181.13,70.0]
[1730168513892,0.8139017,181.25,181.13,70.0]
[1730168514090,34.26472265,181.14,181.13,70.0]
[1730168514293,34.26472265,181.14,181.11,70.0]
[1730168514589,34.26472265,181.17,181.08,70.0]
[1730168514590,34.26472265,181.12,181.08,70.0]
[1730168514787,34.26472265,181.09,181.04,70.0]
[1730168514999,34.26472265,181.05,181.04,70.0]
[1730168515300,34.26472265,181.07,181.06,70.0]
[1730168515500,34.26472265,181.07,181.04,70.0]
[1730168515679,34.26472265,181.06,181.04,70.0]
[1730168515877,34.26472265,181.05,181.04,70.0]
[1730168516284,34.26472265,181.05,181.02,75.66693659]
[1730168516595,34.26472265,181.03,181.02,70.0]
[1730168516893,34.26472265,181.04,181.03,70.0]
[1730168517270,34.26472265,181.05,181.04,70.0]
[1730168518291,34.26472265,181.05,181.02,70.0]
[1730168518496,34.26472265,181.03,181.02,70.0]
[1730168518726,34.26472265,181.03,181.02,2.65204837]
[1730168518902,34.26472265,181.03,181.0,2.65235657]
[1730168519194,34.26472265,181.01,181.0,72.65235657]
[1730168519396,9.40119575,181.01,181.0,72.65235657]
[1730168520170,0.2,181.12,181.0,93.80155657]
[1730168520377,27.0,202.0,181.29,70.0]
[1730168520378,0.1,181.45,181.29,70.0]
[1730168520600,3.24,181.58,181.34,70.0]
[1730168520814,3.24,181.58,181.42,70.0]
[1730168520982,34.26472265,181.47,181.41,70.0]
[1730168521183,34.26472265,181.43,181.42,22.43275326]
[1730168521515,34.36472265,181.53,181.42,22.43275326]
[1730168521516,34.26472265,181.46,181.42,22.43275326]
[1730168521679,34.26472265,181.45,181.43,70.0]
[1730168521885,0.1,181.56,181.46,70.0]
[1730168522106,34.26472265,181.47,181.46,70.0]
[1730168522283,34.26472265,181.47,181.46,86.89446429]
[1730168523191,34.26472265,181.47,181.46,16.89446429]
[1730168523391,34.26472265,181.47,181.44,70.0]
[1730168523593,34.26472265,181.45,181.44,70.0]
[1730168523900,0.1,181.57,181.48,70.0]
[1730168524111,0.1,181.57,181.4,1.20169008]
[1730168524112,34.26472265,181.49,181.46,70.0]
[1730168524281,34.26472265,181.53,181.44,70.0]
[1730168524282,34.26472265,181.47,181.44,70.0]
[1730168524602,55.4952462,181.45,181.42,70.0]
[1730168524813,55.4952462,181.43,181.42,70.0]
[1730168525277,55.4952462,181.43,181.4,70.0]
[1730168525596,55.4952462,181.41,181.39,70.0]
[1730168526001,55.4952462,181.43,181.41,70.0]
[1730168526301,55.4952462,181.42,181.41,70.0]
[1730168526685,55.4952462,181.42,181.39,70.0]
[1730168526879,55.4952462,181.4,181.37,70.0]
[1730168527083,55.4952462,181.38,181.37,70.0]
[1730168527291,55.4952462,181.38,181.35,70.0]
[1730168527497,55.4952462,181.36,181.3,70.0]
[1730168527780,55.4952462,181.34,181.33,70.0]
[1730168528399,55.4952462,181.37,181.35,70.0]
[1730168528588,55.4952462,181.44,181.35,70.0]
[1730168528589,55.4952462,181.38,181.35,70.0]
[1730168528784,55.4952462,181.37,181.35,70.0]
[1730168529102,55.4952462,181.44,181.35,70.0]
[1730168529103,55.4952462,181.36,181.35,70.0]
[1730168529286,55.4952462,181.36,181.33,70.0]
[1730168529494,55.4952462,181.37,181.35,70.0]
[1730168529692,55.4952462,181.36,181.35,70.0]
[1730168529992,55.4952462,181.39,181.37,70.0]
[1730168530314,55.32991414,181.38,181.35,70.0]
[1730168530510,0.1,181.43,181.39,0.16533901]
[1730168530807,0.1,181.38,181.29,70.0]
[1730168531010,55.4952462,181.3,181.29,70.0]
[1730168531300,55.4952462,181.3,181.27,70.0]
[1730168531605,55.4952462,181.35,181.29,70.0]
[1730168531811,55.4952462,181.3,181.29,70.0]
[1730168532703,55.4952462,181.3,181.27,70.0]
[1730168532888,55.4952462,181.35,181.27,70.0]
[1730168532889,55.4952462,181.28,181.27,70.0]
[1730168533094,55.4952462,181.28,181.27,72.49353124]
[1730168533684,110.9904924,181.28,181.27,2.49353124]
[1730168533980,55.4952462,181.28,181.25,70.0]
[1730168534284,0.1,181.34,181.26,2.49353124]
[1730168534482,0.1,181.33,181.26,2.49353124]
[1730168534891,0.1,181.31,181.22,2.49353124]
[1730168535191,0.1,181.26,181.22,2.49353124]
[1730168535394,55.4952462,181.23,181.22,70.0]
[1730168535715,55.4952462,181.25,181.22,72.49353124]
[1730168535884,55.4952462,181.28,181.27,70.0]
[1730168536218,55.4952462,181.29,181.28,70.0]
[1730168536598,55.4952462,181.35,181.23,0.1]
[1730168536599,55.4952462,181.35,181.29,70.0]
[1730168537105,55.4952462,181.32,181.3,2.50772634]
[1730168537302,55.4952462,181.31,181.3,2.51040633]
[1730168537998,55.4952462,181.31,181.28,2.51040633]
[1730168538188,55.4952462,181.29,181.28,2.51040633]
[1730168538906,110.9904924,181.29,181.25,2.51040633]
[1730168539084,110.9904924,181.26,181.22,2.51040633]
[1730168539284,55.4952462,181.23,181.22,2.51040633]
[1730168539498,55.4952462,181.23,181.21,1.5039]
[1730168539803,55.4952462,181.22,181.21,1.5039]
[1730168540682,0.1,181.2,181.14,2.51040633]
[1730168540913,55.4952462,181.15,181.12,2.51040633]
[1730168541231,55.4952462,181.13,181.09,0.96033479]
[1730168541410,55.4952462,181.1,181.04,2.51040633]
[1730168541585,55.4952462,181.05,181.04,2.51040633]
[1730168542231,55.4952462,181.05,180.98,2.51040633]
[1730168542510,55.4952462,180.99,180.98,2.51040633]
[1730168542807,55.4952462,181.04,181.01,70.0]
[1730168543009,55.4952462,181.04,181.02,2.51040633]
[1730168543198,55.4952462,181.05,181.02,2.51040633]
[1730168543401,55.4952462,181.04,181.02,70.0]
[1730168543587,55.4952462,181.07,181.04,70.0]
[1730168544001,55.4952462,181.09,181.06,70.0]
[1730168544596,55.4952462,181.12,181.1,70.0]
[1730168545022,55.4952462,181.11,181.08,70.0]
[1730168545317,55.4952462,181.1,181.08,70.0]
[1730168545914,55.4952462,181.09,181.03,70.0]
[1730168546240,55.70875917,181.06,181.05,70.0]
[1730168546522,55.70875917,181.17,181.02,6.23496939]
[1730168546523,55.70875917,181.1,181.06,70.0]
[1730168546727,55.70875917,181.11,181.09,70.0]
[1730168547223,55.70875917,181.16,181.13,70.0]
[1730168547595,55.70875917,181.15,181.13,70.0]
[1730168547795,55.70875917,181.14,181.11,70.0]
[1730168547996,55.70875917,181.26,181.06,0.1]
[1730168547997,55.70875917,181.15,181.13,70.0]
[1730168548416,55.70875917,181.17,181.15,70.0]
[1730168548599,55.70875917,181.16,181.13,70.0]
[1730168548800,55.70875917,181.14,181.12,70.0]
[1730168549012,55.70875917,181.13,181.12,70.0]
[1730168549523,55.70875917,181.14,181.12,70.0]
[1730168549706,55.70875917,181.19,181.16,70.0]
[1730168549909,55.70875917,181.17,181.14,70.0]
[1730168550216,55.70875917,181.18,181.16,70.0]
[1730168550417,55.70875917,181.19,181.16,70.0]
[1730168551013,55.70875917,181.21,181.18,70.0]
[1730168551218,55.70875917,181.2,181.18,70.0]
[1730168551598,55.70875917,181.19,181.14,6.23496939]
[1730168551800,55.70875917,181.19,181.17,70.0]
[1730168552015,55.70875917,181.2,181.17,70.0]
[1730168552219,55.70875917,181.21,181.17,70.0]
[1730168552540,55.70875917,181.22,181.21,70.0]
[1730168552702,55.617766,181.22,181.18,70.0]
[1730168553026,55.617766,181.2,181.18,70.0]
[1730168553219,55.617766,181.19,181.16,70.0]
[1730168553424,55.617766,181.2,181.17,2.43806709]
[1730168553621,55.617766,181.2,181.18,70.0]
[1730168553807,55.617766,181.19,181.16,70.0]
[1730168554002,55.617766,181.21,181.2,70.0]
[1730168554331,55.617766,181.25,181.24,70.0]
[1730168554503,0.1,181.29,181.18,70.0]
[1730168554825,0.2,181.26,181.15,70.0]
[1730168555128,55.617766,181.17,181.14,70.0]
[1730168555633,55.617766,181.17,181.16,2.43928453]
[1730168555937,55.617766,181.17,181.15,2.43904181]
[1730168556258,55.617766,181.18,181.16,70.0]
[1730168556410,55.617766,181.17,181.16,70.0]
[1730168556609,55.617766,181.17,181.16,72.43902671]
[1730168556826,55.617766,181.17,181.16,2.43902671]
[1730168557013,55.617766,181.18,181.17,70.0]
[1730168557212,55.617766,181.18,181.17,2.43902671]
[1730168557406,55.617766,181.18,181.16,2.43902671]
[1730168557612,55.617766,181.17,181.16,2.43902671]
[1730168558123,55.617766,181.17,181.15,70.0]
[1730168558331,55.617766,181.16,181.15,70.0]
[1730168558525,55.617766,181.16,181.15,72.43936191]
[1730168559027,55.617766,181.24,181.21,70.0]
[1730168559531,55.617766,181.24,181.16,0.1]
[1730168559532,55.617766,181.26,181.23,70.0]
[1730168559829,55.617766,181.24,181.21,70.0]
[1730168560044,55.617766,181.22,181.17,70.0]
[1730168560211,55.617766,181.26,181.19,70.0]
[1730168560406,55.617766,181.21,181.2,2.43865803]
[1730168560832,55.617766,181.22,181.2,2.43865803]
[1730168561242,55.617766,181.22,181.21,70.0]
[1730168561432,55.617766,181.23,181.21,72.43865803]
[1730168561730,55.617766,181.24,181.22,2.43865803]
[1730168561931,55.617766,181.23,181.22,2.43865803]
[1730168562718,55.617766,181.27,181.22,2.43865803]
[1730168562922,55.617766,181.24,181.22,2.43865803]
[1730168563117,55.617766,181.25,181.23,70.0]
[1730168563312,55.617766,181.26,181.24,2.43865803]
[1730168563642,55.617766,181.25,181.24,2.43865803]
[1730168563840,55.617766,181.25,181.22,2.43865803]
[1730168564035,55.617766,181.23,181.22,2.43865803]
[1730168566039,55.617766,181.23,181.16,2.43806097]
[1730168566253,55.617766,181.17,181.16,2.43806097]
[1730168566420,55.617766,181.2,181.19,70.0]
[1730168566624,55.617766,181.2,181.19,72.43806097]
[1730168566922,55.617766,181.25,181.23,70.0]
[1730168567344,55.617766,181.24,181.23,70.0]
[1730168567644,55.617766,181.24,181.23,72.43829169]
[1730168569220,55.617766,181.24,181.23,2.43829169]
[1730168569423,55.617766,181.24,181.22,70.0]
[1730168569727,55.617766,181.23,181.15,70.0]
[1730168569937,55.617766,181.17,181.15,70.0]
[1730168570243,0.1,181.25,181.16,2.43789489]
[1730168570439,55.617766,181.26,181.17,70.0]
[1730168570752,55.617766,181.18,181.15,70.0]
[1730168571043,55.617766,181.16,181.13,70.0]
[1730168571276,55.617766,181.14,181.13,70.0]
[1730168571428,55.617766,181.14,181.13,72.43822586]
[1730168572549,55.617766,181.22,181.19,70.0]
[1730168572721,55.617766,181.22,181.2,10.99815175]
[1730168573444,55.617766,181.21,181.2,2.43822586]
[1730168574117,55.617766,181.22,181.21,70.0]
[1730168574321,55.617766,181.23,181.21,72.43822586]
[1730168574536,6.5276,181.28,181.16,8.55992589]
[1730168574537,55.617766,181.25,181.23,70.0]
[1730168574717,6.5276,181.28,181.16,8.55992589]
[1730168574718,55.617766,181.24,181.2,70.0]
[1730168574928,55.617766,181.24,181.21,2.43753358]
[1730168575144,55.617766,181.23,181.21,2.43753358]
[1730168575449,55.617766,181.23,181.22,70.0]
[1730168575621,55.617766,181.23,181.22,72.43753358]
[1730168576442,55.617766,181.23,181.22,2.43753358]
[1730168576621,55.617766,181.23,181.22,70.0]
[1730168576818,55.617766,181.23,181.22,2.43753358]
[1730168577019,55.617766,181.23,181.2,2.43753358]
[1730168577218,55.617766,181.21,181.2,2.43753358]
[1730168577423,55.617766,181.21,181.18,2.43753358]
[1730168577648,55.617766,181.19,181.18,2.43753358]
[1730168577829,55.617766,181.19,181.16,2.43753358]
[1730168578028,55.617766,181.18,181.16,2.43753358]
[1730168578244,55.617766,181.17,181.16,2.43753358]
[1730168578468,55.617766,181.17,181.15,70.0]
[1730168578764,55.617766,181.18,181.16,2.44274567]
[1730168579123,55.617766,181.26,181.16,2.44274567]
[1730168579124,55.617766,181.17,181.16,2.44274567]
[1730168579326,55.617766,181.17,181.15,2.44274567]
[1730168579521,55.617766,181.16,181.15,2.44274567]
[1730168579740,55.617766,181.16,181.13,2.44274567]
[1730168579944,55.617766,181.14,181.13,2.44274567]
[1730168580750,55.617766,181.14,181.06,2.44274567]
[1730168580937,55.617766,181.07,181.06,2.44274567]
[1730168581127,55.617766,181.1,181.07,70.0]
[1730168581326,55.617766,181.13,181.12,70.0]
[1730168581528,55.617766,181.13,181.12,11.0057316]
[1730168581751,55.617766,181.13,181.12,8.55992589]
[1730168582330,55.617766,181.13,181.09,2.44580571]
[1730168582653,55.617766,181.1,181.05,11.0057316]
[1730168582830,55.617766,181.06,181.05,11.0057316]
[1730168583156,55.617766,181.06,181.05,2.44580571]
[1730168584829,55.617766,181.06,181.01,79.52046644]
[1730168585162,16.4153,181.07,181.02,2.45017235]
[1730168585354,16.4153,181.07,181.01,8.55992589]
[1730168585654,55.617766,181.02,181.01,11.01009824]
[1730168586027,55.617766,181.03,181.01,78.55992589]
[1730168586233,16.4153,181.07,181.02,11.01009824]
[1730168586446,55.617766,181.03,181.02,11.01009824]
[1730168586668,55.617766,181.03,181.02,8.55992589]
[1730168587341,55.617766,181.03,181.01,2.45017235]
[1730168587738,55.617766,181.02,181.01,2.45017235]
[1730168587937,55.617766,181.02,181.01,32.45017235]
[1730168588456,34.28346168,181.06,181.02,70.0]
[1730168588644,34.28346168,181.05,181.02,70.0]
[1730168588849,34.28346168,181.04,181.03,2.41957581]
[1730168589037,0.1,181.12,181.03,2.41957581]
[1730168589246,0.1,181.1,181.03,2.41957581]
[1730168589453,0.1,181.08,181.02,2.41957581]
[1730168589754,34.28346168,181.03,180.99,2.41957581]
[1730168590071,34.28346168,181.01,180.99,80.9795017]